[Event "Fagernes GM Open Autumn 2024"]
[Site "Fagernes"]
[Date "2024.10.09"]
[Round "5.12"]
[White "Amar, Elham"]
[Black "Laddha, Shubh Jayesh"]
[Result "1/2-1/2"]
[ECO "C70"]
[WhiteElo "2540"]
[BlackElo "2308"]
[Annotator "TA"]
[PlyCount "117"]
[EventDate "2024.10.03"]
[EventType "swiss"]
[EventCountry "NOR"]
[SourceTitle "playchess.com"]
[Source "ChessBase"]
[SourceQuality "1"]
[TimeControl "40/6000:2400+30"]

{[%evp 32,117,-1,-22,-23,-41,-37,-32,-37,-38,-35,-41,-29,-33,-32,-34,-26,-22,0,-12,-2,-47,-13,-74,-84,-85,-77,-82,-77,-85,-72,-64,-79,-73,0,0,0,0,0,0,0,0,0,0,0,0,0,0,0,0,0,0,0,0,0,0,0,0,0,0,0,0,0,0,0,0,0,0,0,0,0,0,0,0,0,0,0,0,0,0,0,0,0,0,0,0,0,0]} 1. e4 {[%emt 0:04:21]} e5 {[%emt 0:00:00]} 2. Nf3 {[%emt 0:00:00]} Nc6 {[%emt 0:00:00]} 3. Bb5 {[%emt 0:00:00]} a6 {[%emt 0:00:00]} 4. Ba4 {[%emt 0:00:00]} Bc5 {[%emt 0:00:00]} 5. Nc3 {[%emt 0:00:49]} Nge7 {[%emt 0:00:49]} 6. O-O {[%emt 0:00:56]} d6 {[%emt 0:04:06]} 7. d3 {[%emt 0:00:36]} O-O {[%emt 0:01:53]} 8. Be3 {[%emt 0:01:24] C70: Ruy Lopez: 3...a6 4 Ba4, Norwegian and Delayed Schliemann.} Bg4 {[%emt 0:06:47]} 9. Bxc5 $146 {[%emt 0:07:48]} ({Predecessor:} 9. Nd5 Nd4 10. Bxd4 Bxd4 11. c3 Nxd5 12. exd5 Bb6 13. Qe2 Qf6 14. Bd1 c6 15. Qe4 Bf5 {0-1 Glesnes,I (578)-Garmannslund,V (1600) Sotra Kretsmesterskap 2003 (2)}) 9... dxc5 {[%emt 0:00:00]} 10. h3 {[%emt 0:02:19]} Bh5 {[%emt 0:03:24]} 11. g4 {[%emt 0:03:53]} Bg6 {[%emt 0:00:00]} 12. Bb3 {[%emt 0:03:56]} Qd6 {[%emt 0:06:27]} 13. Ne2 {[%emt 0:00:00]} Kh8 {[%emt 0:05:31]} 14. Nh4 {[%emt 0:01:44]} f6 {[%emt 0:05:26]} 15. Kh1 {[%emt 0:07:32]} Nd4 {[%emt 0:04:34]} 16. Nxd4 {[%emt 0:00:00]} Qxd4 {[%emt 0:00:18]} 17. c3 {[%emt 0:00:58]} Qd7 {[%emt 0:03:17]} 18. Qe2 {[%emt 0:00:45]} Rad8 {[%emt 0:00:15]} 19. Rad1 {[%emt 0:00:00]} Bf7 {[%emt 0:05:01]} 20. Bxf7 {[%emt 0:02:31]} Rxf7 {[%emt 0:00:00]} 21. Ng2 {[%emt 0:00:00]} Ng6 {[%emt 0:05:06]} 22. Qe3 {[%emt 0:09:14]} b6 {[%emt 0:01:41]} 23. Rd2 {[%emt 0:06:59]} Qe6 {[%emt 0:03:59]} 24. b3 {[%emt 0:00:16]} Rfd7 {[%emt 0:00:51]} 25. Rfd1 {[%emt 0:00:16]} h6 {[%emt 0:08:13]} 26. Kg1 {[%emt 0:04:33]} a5 {[%emt 0:01:56]} 27. f3 {[%emt 0:00:24]} (27. d4 $11) 27... a4 $17 {[%emt 0:03:33]} 28. bxa4 {[%emt 0:09:17]} Ra8 {[%emt 0:00:05]} 29. h4 {[%emt 0:00:23]} Rxa4 {[%emt 0:00:43]} 30. h5 {[%emt 0:00:00]} Ne7 {[%emt 0:00:58]} 31. d4 {[%emt 0:00:00]} cxd4 {[%emt 0:02:23]} (31... Rxa2 32. dxc5 Raxd2 33. Rxd2 $11) 32. cxd4 {[%emt 0:00:00]} Raxd4 {[%emt 0:05:54]} (32... Rxa2 33. d5 Rxd2 34. Rxd2 $15) (32... Rdxd4 $17 33. Rxd4 exd4 (33... Rxd4 34. Rxd4 exd4 35. Qxd4 $11) 34. Rxd4 Qxa2 (34... Rxa2 35. e5 $15) 35. Rxa4 Qxa4) 33. Rxd4 $11 {[%emt 0:00:00]} Rxd4 {[%emt 0:00:00]} 34. Rxd4 {[%emt 0:00:00]} exd4 {[%emt 0:00:00]} 35. Qxd4 {[%emt 0:00:00]} Nc6 {[%emt 0:00:47]} 36. Qc3 {[%emt 0:00:08]} Ne5 {[%emt 0:02:07]} 37. Nh4 {[%emt 0:01:56]} Qxa2 {[%emt 0:05:09]} 38. Ng6+ {[%emt 0:11:42]} Nxg6 {[%emt 0:00:00]} 39. hxg6 {[%emt 0:00:00]} c5 {[%emt 0:01:25]} 40. Qd3 {[%emt 0:06:53]} Qa1+ {[%emt 0:00:00]} 41. Kg2 {[%emt 0:47:14]} Qd4 {[%emt 0:44:02]} 42. Qb5 {[%emt 0:00:27]} Qd8 {[%emt 0:00:57]} 43. Qc6 {[%emt 0:01:23]} Kg8 {[%emt 0:00:00]} 44. Qe6+ {[%emt 0:00:00]} Kh8 {[%emt 0:00:00]} 45. g5 {[%emt 0:00:00]} f5 $1 {[%emt 0:00:00]} (45... hxg5 $2 46. Qh3+ Kg8 47. Qh7+ Kf8 48. Qh8+ Ke7 49. Qxg7+ Kd6 50. Qf7 $18) 46. Kh3 {[%emt 0:00:00]} fxe4 {[%emt 0:00:00]} 47. gxh6 {[%emt 0:00:00]} gxh6 {[%emt 0:00:00]} 48. f4 {[%emt 0:00:00]} e3 {[%emt 0:00:00]} 49. f5 {[%emt 0:00:00]} (49. Qxe3 $2 {too greedy.} Qd7+ 50. Kg3 Kg7 $19) 49... e2 $1 {[%emt 0:00:00]} 50. Qe5+ {[%emt 0:00:00]} Kg8 {[%emt 0:00:00]} 51. Qe6+ {[%emt 0:00:00]} Kh8 {[%emt 0:00:00]} 52. Qe5+ {[%emt 0:00:00]} Kg8 {[%emt 0:00:00]} 53. Qxe2 {[%emt 0:00:00]} Qf6 {[%emt 0:00:00]} 54. Qe6+ {[%emt 0:00:00]} Kg7 $1 {[%emt 0:00:00]} (54... Qxe6 55. fxe6 Kg7 56. e7 Kxg6 57. e8=Q+ (57. e8=B+ $2 {perishes.} Kf6 $19) 57... Kf5 58. Kg3 c4 59. Kf3) 55. Qd7+ {[%emt 0:00:00]} Kf8 {[%emt 0:00:00]} 56. Qc8+ {[%emt 0:00:00]} Kg7 {[%emt 0:00:00]} 57. Qd7+ {[%emt 0:00:00]} Kf8 {[%emt 0:00:00]} 58. Qc8+ {[%emt 0:00:00]} Kg7 {[%emt 0:00:00]} 59. Qd7+ {[%emt 0:00:00]} 1/2-1/2

[Event "Fagernes GM Open Autumn 2024"]
[Site "Fagernes"]
[Date "2024.10.09"]
[Round "5.13"]
[White "Blomqvist, Erik"]
[Black "Skotheim, Andreas"]
[Result "1-0"]
[ECO "C79"]
[WhiteElo "2483"]
[BlackElo "2234"]
[Annotator "TA"]
[PlyCount "95"]
[EventDate "2024.10.03"]
[EventType "swiss"]
[EventCountry "NOR"]
[SourceTitle "playchess.com"]
[Source "ChessBase"]
[SourceQuality "1"]
[TimeControl "40/6000:2400+30"]

{[%evp 15,95,31,35,31,34,34,31,40,43,32,47,40,48,21,14,9,14,0,25,22,17,13,0,0,0,0,119,0,0,0,0,0,0,0,0,0,57,59,54,53,52,47,78,75,79,81,96,100,103,77,88,48,75,76,114,75,88,81,80,89,97,104,116,168,158,153,194,202,224,235,294,273,392,405,421,428,412,402,577,572,912,888]} 1. e4 {[%emt 0:00:00]} e5 {[%emt 0:00:00]} 2. Nf3 {[%emt 0:00:00]} Nc6 {[%emt 0:00:00]} 3. Bb5 {[%emt 0:00:00]} a6 {[%emt 0:00:00]} 4. Ba4 {[%emt 0:00:00]} Nf6 {[%emt 0:00:00]} 5. O-O {[%emt 0:00:00]} d6 {[%emt 0:00:00]} 6. Bxc6+ {[%emt 0:00:00]} bxc6 {[%emt 0:00:00]} 7. d4 {[%emt 0:00:00]} exd4 {[%emt 0:00:00]} 8. Nxd4 {[%emt 0:00:00]} c5 {[%emt 0:00:00]} 9. Nc6 {[%emt 0:00:00]} Qd7 {[%emt 0:00:00]} 10. Na5 {[%emt 0:00:00]} Qa4 {[%emt 0:00:00]} 11. Bd2 {[%emt 0:00:00] White is slightly better.} Be7 {[%emt 0:00:00]} 12. Re1 {[%emt 0:00:00]} Bg4 {[%emt 0:00:00]} 13. f3 {[%emt 0:00:00]} Be6 {[%emt 0:00:00][%cal Oe8g8]} 14. Qe2 {[%emt 0:00:00]} O-O {[%emt 0:04:22]} (14... Bxa2 $2 15. Kh1 $18) (14... Qxc2 $6 15. Nc3 $16) 15. c4 {[%emt 0:00:00]} Rae8 $1 {[%emt 0:01:54]} 16. f4 {[%emt 0:04:54]} Bd8 {[%emt 0:06:47]} 17. Qd3 {[%emt 0:07:26]} Bc8 {[%emt 0:08:13][%cal Of6e4]} 18. b3 {[%emt 0:01:17]} Qd7 {[%emt 0:00:00]} 19. Nc3 {[%emt 0:01:17]} c6 {[%emt 0:07:12]} 20. Na4 {[%emt 0:01:11]} d5 {[%emt 0:04:24] [#]} (20... Qc7 $11) 21. cxd5 {[%emt 0:06:06]} (21. Nxc5 $2 {is the wrong capture.} Qa7 22. b4 (22. Nxc6 $2 Qxc5+ 23. Nd4 Bb6 $19) (22. Qe3 $2 Bb6 $19) 22... Bxa5 (22... dxe4 23. Qa3 $15) (22... Nxe4 23. Nxc6 Qb6 24. cxd5 $16) 23. cxd5 cxd5 $19) (21. e5 $1 $16 {[%cal Re5f6]}) 21... cxd5 $11 {[%emt 0:00:01]} 22. exd5 {[%emt 0:00:00]} Qxd5 {[%emt 0:00:30]} 23. Qxd5 {[%emt 0:00:03]} Nxd5 {[%emt 0:00:00]} 24. Nc4 {[%emt 0:00:31]} Bf6 {[%emt 0:04:25]} 25. Ne5 {[%emt 0:00:00]} Bxe5 {[%emt 0:01:03]} ({Black should play} 25... g5 $11 26. Nxc5 Nxf4 27. Bxf4 gxf4) 26. Rxe5 $14 {[%emt 0:00:52]} Rxe5 {[%emt 0:03:59]} 27. fxe5 {[%emt 0:00:00]} Re8 {[%emt 0:00:47]} 28. Re1 {[%emt 0:00:00]} Nb4 {[%emt 0:03:54]} 29. Nxc5 {[%emt 0:00:00]} Nc2 {[%emt 0:10:41]} 30. Re4 {[%emt 0:02:31]} Bf5 {[%emt 0:03:29]} 31. Rf4 {[%emt 0:10:46]} Rxe5 {[%emt 0:01:13]} 32. Nxa6 {[%emt 0:00:00]} Bd3 {[%emt 0:01:09]} 33. Nb8 {[%emt 0:09:04]} Re2 {[%emt 0:04:12]} 34. Rf2 {[%emt 0:00:41]} Re8 {[%emt 0:02:29]} 35. Nc6 {[%emt 0:07:05]} Re6 {[%emt 0:08:01]} 36. Nb4 {[%emt 0:02:05]} Nxb4 {[%emt 0:00:06]} 37. Bxb4 $16 {[%emt 0:00:00][%mdl 4096] Endgame. KRB-KRB} f5 {[%emt 0:00:13]} 38. Rd2 {[%emt 0:00:20]} Re1+ {[%emt 0:03:57]} (38... Be4 $16) 39. Kf2 $18 {[%emt 0:00:00]} Rf1+ {[%emt 0:00:00]} 40. Ke3 {[%emt 0:00:00]} Be4 {[%emt 0:00:02]} 41. Bc3 {[%emt 0:41:41]} Rh1 {[%emt 0:47:00]} 42. g3 {[%emt 0:05:00]} h5 {[%emt 0:02:27]} 43. b4 {[%emt 0:10:04][%cal Bb3b4,Bb4b5][%mdl 32]} Rc1 {[%emt 0:02:48] [#]} (43... Bc6 {keeps fighting.} 44. Kd4 Bf3) 44. Kd4 $1 {[%emt 0:02:27]} Bc6 {[%emt 0:01:27]} 45. Bb2 {[%emt 0:01:15]} Re1 {[%emt 0:00:54]} 46. Kc5 {[%emt 0:00:14]} Ba4 {[%emt 0:00:24]} (46... Bf3 $142 47. a4 Re8) 47. b5 {[%emt 0:00:31]} Re6 {[%emt 0:03:04]} 48. Kb4 {[%emt 0:00:25] Weighted Error Value: White=0.08 (flawless) /Black=0.28 (precise) .  Mistake:       	White=1     	Black=5      Inaccurate:     	White=3     	Black=4      OK:         	White=18    	Black=15     Best:        	White=6     	---        Strong:       	White=1     	Black=1} 1-0

[Event "Fagernes GM Open Autumn 2024"]
[Site "Fagernes"]
[Date "2024.10.09"]
[Round "5.14"]
[White "Fiskaaen, Martin Holten"]
[Black "Sorensen, Hampus"]
[Result "1-0"]
[ECO "E08"]
[WhiteElo "2259"]
[BlackElo "2423"]
[Annotator "RC"]
[PlyCount "150"]
[EventDate "2024.10.03"]
[EventType "swiss"]
[EventCountry "NOR"]
[SourceTitle "playchess.com"]
[Source "ChessBase"]
[SourceQuality "1"]
[TimeControl "40/6000:2400+30"]

1. d4 {[%emt 0:00:00]} Nf6 {[%emt 0:00:00]} 2. c4 {[%emt 0:00:00]} e6 {[%emt 0:00:00]} 3. Nf3 {[%emt 0:00:00]} d5 {[%emt 0:00:00]} 4. g3 {[%emt 0:00:00]} Bb4+ {[%emt 0:00:00]} 5. Bd2 {[%emt 0:00:00]} Be7 {[%emt 0:00:00]} 6. Bg2 {[%emt 0:00:00]} c6 {[%emt 0:00:00]} 7. Qc2 {[%emt 0:00:00]} Nbd7 {[%emt 0:00:00]} 8. Bf4 {[%emt 0:00:00]} O-O {[%emt 0:00:00]} 9. O-O {[%emt 0:00:00]} a5 {[%emt 0:00:00]} 10. Rd1 {[%emt 0:00:49]} a4 {[%emt 0:00:00]} 11. a3 {[%emt 0:03:58]} Ne4 {[%emt 0:00:00]} 12. Nc3 {[%emt 0:03:42]} Nxc3 {[%emt 0:00:12]} 13. Qxc3 {[%emt 0:00:51]} Nb6 {[%emt 0:02:05]} 14. c5 {[%emt 0:09:43]} Nd7 {[%emt 0:01:23]} 15. b4 {[%emt 0:04:38]} axb3 {[%emt 0:05:48]} 16. Qxb3 {[%emt 0:00:11]} g5 {[%emt 0:06:25]} 17. Be3 {[%emt 0:12:42]} f5 {[%emt 0:12:03]} 18. Rdb1 {[%emt 0:03:58]} Bf6 {[%emt 0:08:44]} 19. Qc3 {[%emt 0:01:26]} Rf7 {[%emt 0:08:12]} 20. Ne5 {[%emt 0:02:55]} Nxe5 {[%emt 0:00:58]} 21. dxe5 {[%emt 0:00:00]} Be7 {[%emt 0:00:49]} 22. Rb4 {[%emt 0:10:17]} Qa5 {[%emt 0:06:25]} 23. Qc1 {[%emt 0:01:19]} Rg7 {[%emt 0:01:26]} 24. Bd4 {[%emt 0:00:35]} h6 {[%emt 0:05:34]} 25. e3 {[%emt 0:02:55]} Qd8 {[%emt 0:06:05]} 26. a4 {[%emt 0:02:59]} g4 {[%emt 0:06:25]} 27. Bf1 {[%emt 0:04:26]} h5 {[%emt 0:00:15]} 28. Bd3 {[%emt 0:00:11]} h4 {[%emt 0:00:40]} 29. Kf1 {[%emt 0:00:00]} Rh7 {[%emt 0:07:30]} 30. Ke2 {[%emt 0:00:00]} hxg3 {[%emt 0:00:00]} 31. hxg3 {[%emt 0:00:00]} Rh2 {[%emt 0:00:00]} 32. Rb2 {[%emt 0:14:03]} Qc7 {[%emt 0:02:35]} 33. Qe1 {[%emt 0:04:06]} Qa5 {[%emt 0:01:47]} 34. Qg1 {[%emt 0:00:38]} Rh7 {[%emt 0:00:48]} 35. Rc2 {[%emt 0:00:48]} Bd8 {[%emt 0:00:22]} 36. f3 {[%emt 0:01:41]} Rg7 {[%emt 0:03:33]} 37. Qh2 {[%emt 0:00:58]} Rh7 {[%emt 0:06:36]} 38. Qg2 {[%emt 0:00:57]} gxf3+ {[%emt 0:00:00]} 39. Kxf3 {[%emt 0:00:15]} Qc7 {[%emt 0:00:00]} 40. g4 {[%emt 0:07:54]} Rg7 {[%emt 0:00:08]} 41. gxf5 {[%emt 0:03:11]} exf5 {[%emt 0:12:00]} 42. Qh2 {[%emt 0:17:36]} Rh7 {[%emt 0:03:08]} 43. Rg2+ {[%emt 0:09:00]} Kf8 {[%emt 0:00:11]} 44. Qg3 {[%emt 0:01:16]} Be6 {[%emt 0:17:50]} 45. Rh2 {[%emt 0:02:38]} Qf7 {[%emt 0:07:09]} 46. Rah1 {[%emt 0:01:06]} Rg7 {[%emt 0:00:10]} 47. Rh8+ {[%emt 0:02:07]} Ke7 {[%emt 0:00:16]} 48. Qxg7 {[%emt 0:02:06]} Qxg7 {[%emt 0:00:01]} 49. R1h7 {[%emt 0:01:25]} Kf7 {[%emt 0:03:08]} 50. Bxf5 {[%emt 0:02:17]} Qxh7 {[%emt 0:00:03]} 51. Rxh7+ {[%emt 0:00:18]} Kg8 {[%emt 0:00:01]} 52. Bc2 {[%emt 0:01:32]} Ba5 {[%emt 0:02:47]} 53. Re7 {[%emt 0:02:53]} Rf8+ {[%emt 0:00:25]} 54. Kg2 {[%emt 0:00:28]} Be1 {[%emt 0:02:27]} 55. Bh7+ {[%emt 0:00:34]} Kh8 {[%emt 0:00:01]} 56. Rxe6 {[%emt 0:00:22]} Kxh7 {[%emt 0:00:02]} 57. Re7+ {[%emt 0:00:09]} Kg6 {[%emt 0:00:07]} 58. Rxb7 {[%emt 0:00:32]} Kf5 {[%emt 0:01:54]} 59. Kf3 {[%emt 0:00:41]} Ba5 {[%emt 0:00:55]} 60. Ra7 {[%emt 0:00:47]} Bd8 {[%emt 0:00:29]} 61. Ra8 {[%emt 0:00:33]} Ke6+ {[%emt 0:00:06]} 62. Ke2 {[%emt 0:00:13]} Kd7 {[%emt 0:00:52]} 63. Bc3 {[%emt 0:00:47]} Re8 {[%emt 0:00:38]} 64. Kd3 {[%emt 0:00:20]} Re6 {[%emt 0:00:06]} 65. a5 {[%emt 0:00:37]} Rg6 {[%emt 0:00:09]} 66. a6 {[%emt 0:00:27]} Rg2 {[%emt 0:00:37]} 67. e6+ {[%emt 0:00:27]} Ke7 {[%emt 0:00:02]} 68. Be5 {[%emt 0:00:32]} Ba5 {[%emt 0:00:01]} 69. Bc3 {[%emt 0:00:33]} Bd8 {[%emt 0:00:55]} 70. Rc8 {[%emt 0:00:33]} Ra2 {[%emt 0:00:31]} 71. Rxc6 {[%emt 0:00:24]} Ke8 {[%emt 0:01:23]} 72. Rc8 {[%emt 0:00:25]} Ke7 {[%emt 0:00:05]} 73. c6 {[%emt 0:00:41]} Bb6 {[%emt 0:01:05]} 74. c7 {[%emt 0:00:27]} Kd6 {[%emt 0:00:08]} 75. e7 {[%emt 0:00:26]} Kxe7 {[%emt 0:00:06]} 1-0

[Event "Fagernes GM Open Autumn 2024"]
[Site "Fagernes"]
[Date "2024.10.09"]
[Round "5.15"]
[White "Wallace, John Paul"]
[Black "Gudbrandsen, Gustav"]
[Result "1-0"]
[ECO "C11"]
[WhiteElo "2373"]
[BlackElo "2197"]
[Annotator "RC"]
[PlyCount "49"]
[EventDate "2024.10.03"]
[EventType "swiss"]
[EventCountry "NOR"]
[SourceTitle "playchess.com"]
[Source "ChessBase"]
[SourceQuality "1"]
[TimeControl "40/6000:2400+30"]

1. e4 {[%emt 0:00:00]} e6 {[%emt 0:00:00]} 2. d4 {[%emt 0:00:00]} d5 {[%emt 0:00:00]} 3. Nc3 {[%emt 0:00:00]} Nf6 {[%emt 0:00:00]} 4. e5 {[%emt 0:00:00]} Nfd7 {[%emt 0:00:00]} 5. f4 {[%emt 0:00:00]} c5 {[%emt 0:00:00]} 6. Nf3 {[%emt 0:00:00]} Nc6 {[%emt 0:00:00]} 7. Be3 {[%emt 0:00:00]} a6 {[%emt 0:00:12]} 8. Ne2 {[%emt 0:00:00]} Qb6 {[%emt 0:01:32]} 9. Qc1 {[%emt 0:00:00]} g5 {[%emt 0:01:54]} 10. fxg5 {[%emt 0:02:29]} cxd4 {[%emt 0:00:14]} 11. Nexd4 {[%emt 0:00:00]} Ncxe5 {[%emt 0:00:40]} 12. Be2 {[%emt 0:05:39]} Bc5 {[%emt 0:06:07]} 13. c3 {[%emt 0:01:41]} Nxf3+ {[%emt 0:05:49]} 14. Bxf3 {[%emt 0:06:34]} Ne5 {[%emt 0:03:59]} 15. O-O {[%emt 0:01:09]} a5 {[%emt 0:02:30]} 16. Kh1 {[%emt 0:06:25]} Nxf3 {[%emt 0:11:43]} 17. Rxf3 {[%emt 0:00:00]} Bd7 {[%emt 0:03:29]} 18. Nc2 {[%emt 0:06:07]} O-O-O {[%emt 0:14:57]} 19. Rxf7 {[%emt 0:05:11]} Rdf8 {[%emt 0:00:40]} 20. Rf6 {[%emt 0:00:02]} Rxf6 {[%emt 0:08:42]} 21. gxf6 {[%emt 0:02:54]} Bxe3 {[%emt 0:02:03]} 22. Qxe3 {[%emt 0:06:29]} d4 {[%emt 0:03:58]} 23. Qxd4 {[%emt 0:06:59]} Qxb2 {[%emt 0:00:07]} 24. f7 {[%emt 0:00:08]} Rd8 {[%emt 0:05:33]} 25. f8=Q {[%emt 0:02:28]} 1-0

[Event "Fagernes GM Open Autumn 2024"]
[Site "Fagernes"]
[Date "2024.10.09"]
[Round "5.16"]
[White "Vijayakumar, Rishi"]
[Black "Kanyamarala, Tarun"]
[Result "0-1"]
[ECO "D45"]
[WhiteElo "2172"]
[BlackElo "2369"]
[Annotator "RC"]
[PlyCount "80"]
[EventDate "2024.10.03"]
[EventType "swiss"]
[EventCountry "NOR"]
[SourceTitle "playchess.com"]
[Source "ChessBase"]
[SourceQuality "1"]
[TimeControl "40/6000:2400+30"]

1. d4 {[%emt 0:00:00]} Nf6 {[%emt 0:00:13]} 2. c4 {[%emt 0:00:00]} e6 {[%emt 0:00:00]} 3. Nf3 {[%emt 0:00:00]} d5 {[%emt 0:00:00]} 4. Nc3 {[%emt 0:00:00]} c6 {[%emt 0:00:00]} 5. e3 {[%emt 0:00:00]} Nbd7 {[%emt 0:00:00]} 6. Qc2 {[%emt 0:00:00]} Bd6 {[%emt 0:00:00]} 7. g4 {[%emt 0:00:00]} h6 {[%emt 0:00:00]} 8. Bd2 {[%emt 0:00:00]} a6 {[%emt 0:02:36]} 9. Rg1 {[%emt 0:05:11]} dxc4 {[%emt 0:16:42]} 10. g5 {[%emt 0:12:16]} hxg5 {[%emt 0:02:18]} 11. Nxg5 {[%emt 0:00:00]} Qe7 {[%emt 0:02:28]} 12. e4 {[%emt 0:09:09]} e5 {[%emt 0:18:04]} 13. Bxc4 {[%emt 0:00:03]} Rf8 {[%emt 0:00:00]} 14. d5 {[%emt 0:29:43]} Nb6 {[%emt 0:15:08]} 15. Bb3 {[%emt 0:07:29]} cxd5 {[%emt 0:00:00]} 16. exd5 {[%emt 0:00:00]} g6 {[%emt 0:03:28]} 17. Nge4 {[%emt 0:05:40]} Nxe4 {[%emt 0:01:44]} 18. Nxe4 {[%emt 0:00:13]} Bf5 {[%emt 0:00:00]} 19. Ba4+ {[%emt 0:06:44]} Nxa4 {[%emt 0:13:27]} 20. Qxa4+ {[%emt 0:00:00]} b5 {[%emt 0:00:00]} 21. Nxd6+ {[%emt 0:00:20]} Qxd6 {[%emt 0:00:00]} 22. Qb3 {[%emt 0:06:30]} Rh8 {[%emt 0:00:00]} 23. Bb4 {[%emt 0:00:32]} Qd7 {[%emt 0:00:00]} 24. d6 {[%emt 0:03:21]} Rc8 {[%emt 0:14:30]} 25. Qe3 {[%emt 0:02:31]} f6 {[%emt 0:00:56]} 26. Rc1 {[%emt 0:00:00]} Rh4 {[%emt 0:01:27]} 27. Rxc8+ {[%emt 0:09:39]} Qxc8 {[%emt 0:00:00]} 28. Qb3 {[%emt 0:00:08]} Be6 {[%emt 0:03:07]} 29. Qc3 {[%emt 0:00:00]} Rxb4 {[%emt 0:01:29]} 30. Rxg6 {[%emt 0:00:00]} Re4+ {[%emt 0:00:58]} 31. Kd2 {[%emt 0:00:00]} Rd4+ {[%emt 0:00:00]} 32. Ke3 {[%emt 0:00:00]} Qxc3+ {[%emt 0:00:26]} 33. bxc3 {[%emt 0:00:00]} Rxd6 {[%emt 0:00:00]} 34. Rxf6 {[%emt 0:00:00]} Ke7 {[%emt 0:00:00]} 35. Rh6 {[%emt 0:00:00]} Bxa2 {[%emt 0:00:00]} 36. Rh7+ {[%emt 0:00:00]} Bf7 {[%emt 0:00:00]} 37. h4 {[%emt 0:00:00]} a5 {[%emt 0:00:08]} 38. h5 {[%emt 0:00:00]} a4 {[%emt 0:00:00]} 39. Rh8 {[%emt 0:00:00]} Rd8 {[%emt 0:00:03]} 40. Rh6 {[%emt 0:00:00]} Ra8 {[%emt 0:00:00]} 0-1

[Event "Fagernes GM Open Autumn 2024"]
[Site "Fagernes"]
[Date "2024.10.09"]
[Round "5.17"]
[White "Oye-Stromberg, Alexander"]
[Black "Namitbir Singh Walia"]
[Result "1/2-1/2"]
[ECO "C78"]
[WhiteElo "2248"]
[BlackElo "2351"]
[Annotator "RC"]
[PlyCount "45"]
[EventDate "2024.10.03"]
[EventType "swiss"]
[EventCountry "NOR"]
[SourceTitle "playchess.com"]
[Source "ChessBase"]
[SourceQuality "1"]
[TimeControl "40/6000:2400+30"]

1. e4 {[%emt 0:00:26]} e5 {[%emt 0:00:00]} 2. Nf3 {[%emt 0:00:27]} Nc6 {[%emt 0:00:00]} 3. Bb5 {[%emt 0:00:00]} a6 {[%emt 0:00:00]} 4. Ba4 {[%emt 0:00:00]} Nf6 {[%emt 0:00:00]} 5. O-O {[%emt 0:00:00]} b5 {[%emt 0:00:00]} 6. Bb3 {[%emt 0:00:00]} Bc5 {[%emt 0:00:00]} 7. c3 {[%emt 0:00:00]} d6 {[%emt 0:00:00]} 8. a4 {[%emt 0:01:29]} Rb8 {[%emt 0:00:00]} 9. d4 {[%emt 0:00:00]} Bb6 {[%emt 0:00:00]} 10. a5 {[%emt 0:00:00]} Ba7 {[%emt 0:00:00]} 11. h3 {[%emt 0:00:00]} Bb7 {[%emt 0:00:00]} 12. Be3 {[%emt 0:00:51]} Nxe4 {[%emt 0:00:00]} 13. d5 {[%emt 0:00:09]} Bxe3 {[%emt 0:00:00]} 14. dxc6 {[%emt 0:00:00]} Nxf2 {[%emt 0:00:00]} 15. Qe2 {[%emt 0:00:23]} Nxh3+ {[%emt 0:00:00]} 16. Kh1 {[%emt 0:00:00]} Nf2+ {[%emt 0:00:00]} 17. Rxf2 {[%emt 0:00:00]} Bxf2 {[%emt 0:00:00]} 18. cxb7 {[%emt 0:00:00]} Ba7 {[%emt 0:00:00]} 19. Bd5 {[%emt 0:07:33]} Qd7 {[%emt 0:00:00]} 20. Nd4 {[%emt 0:12:06]} Qe7 {[%emt 0:00:00]} 21. Nf3 {[%emt 0:05:17]} Qd7 {[%emt 0:00:00]} 22. Nd4 {[%emt 0:01:05]} Qe7 {[%emt 0:00:00]} 23. Nf3 {[%emt 0:01:57]} 1/2-1/2